[Event "LJ Slovak Open 2022"]
[Site "Liptovsky Jan"]
[Date "2022.06.26"]
[Round "7.6"]
[White "Spik, Peter"]
[Black "Borsos, Bogdan"]
[Result "0-1"]
[ECO "A46"]
[WhiteElo "1969"]
[BlackElo "2200"]
[Annotator "RC"]
[PlyCount "64"]
[EventDate "2022.06.23"]
[EventType "swiss"]
[EventCountry "SVK"]
[SourceTitle "playchess.com"]
[Source "ChessBase"]
[SourceQuality "1"]
[TimeControl "3600+30"]

1. d4 {[%emt 0:00:04]} Nf6 {[%emt 0:04:58]} 2. Nf3 {[%emt 0:00:35]} e6 {[%emt 0:00:31]} 3. Bg5 {[%emt 0:00:24]} c5 {[%emt 0:00:37]} 4. c3 {[%emt 0:03:16]} cxd4 {[%emt 0:04:04]} 5. cxd4 {[%emt 0:06:28]} Qa5+ {[%emt 0:00:19]} 6. Bd2 {[%emt 0:01:19]} Qb6 {[%emt 0:00:24]} 7. Qc2 {[%emt 0:00:17]} Nc6 {[%emt 0:00:23]} 8. e3 {[%emt 0:00:17]} d5 {[%emt 0:00:33]} 9. a3 {[%emt 0:02:00]} Be7 {[%emt 0:09:31]} 10. Nc3 {[%emt 0:01:01]} O-O {[%emt 0:00:10]} 11. b4 {[%emt 0:04:00]} Qd8 {[%emt 0:03:50]} 12. Bd3 {[%emt 0:00:28]} Bd7 {[%emt 0:01:53]} 13. O-O {[%emt 0:00:26]} Rc8 {[%emt 0:00:15]} 14. Rfc1 {[%emt 0:00:23]} h6 {[%emt 0:00:56]} 15. Qb2 {[%emt 0:01:28]} Bd6 {[%emt 0:00:36]} 16. Ne2 {[%emt 0:01:07]} Ne4 {[%emt 0:05:15]} 17. Be1 {[%emt 0:00:37]} f5 {[%emt 0:00:53]} 18. Rab1 {[%emt 0:06:00]} a6 {[%emt 0:05:50]} 19. Rc2 {[%emt 0:04:24]} Qe7 {[%emt 0:04:11]} 20. Ne5 {[%emt 0:08:05]} Nxe5 {[%emt 0:07:24]} 21. dxe5 {[%emt 0:00:06]} Bb8 {[%emt 0:00:11]} 22. f4 {[%emt 0:02:12]} Rxc2 {[%emt 0:02:35]} 23. Qxc2 {[%emt 0:02:18]} Rc8 {[%emt 0:00:05]} 24. Qb2 {[%emt 0:01:17]} Bb5 {[%emt 0:01:55]} 25. Bxb5 {[%emt 0:03:54]} axb5 {[%emt 0:00:06]} 26. Rc1 {[%emt 0:03:01]} Rc4 {[%emt 0:00:10]} 27. Rxc4 {[%emt 0:01:44]} bxc4 {[%emt 0:00:07]} 28. Nd4 {[%emt 0:06:07]} Ba7 {[%emt 0:00:13]} 29. g3 {[%emt 0:00:40]} Qe8 {[%emt 0:03:19]} 30. b5 {[%emt 0:01:52]} Bxd4 {[%emt 0:00:42]} 31. exd4 {[%emt 0:00:21]} Qh5 {[%emt 0:00:10]} 32. Bb4 {[%emt 0:06:31]} Qf3 {[%emt 0:01:04]} 0-1

[Event "LJ Slovak Open 2022"]
[Site "Liptovsky Jan"]
[Date "2022.06.26"]
[Round "7.7"]
[White "Podjavorinsky, Michal"]
[Black "Bombek, Peter"]
[Result "1/2-1/2"]
[ECO "C11"]
[WhiteElo "1941"]
[BlackElo "2111"]
[Annotator "NA RC"]
[PlyCount "38"]
[EventDate "2022.06.23"]
[EventType "swiss"]
[EventCountry "SVK"]
[SourceTitle "playchess.com"]
[Source "ChessBase"]
[SourceQuality "1"]
[TimeControl "3600+30"]

1. e4 {[%emt 0:00:03]} e6 {[%emt 0:00:04]} 2. Nc3 {[%emt 0:00:08]} d5 {[%emt 0:00:03]} 3. d4 {[%emt 0:00:06]} Nf6 {[%emt 0:00:27]} 4. e5 {[%emt 0:00:08]} Nfd7 {[%emt 0:00:05]} 5. f4 {[%emt 0:00:05]} c5 {[%emt 0:00:06]} 6. Nf3 {[%emt 0:00:08]} Nc6 {[%emt 0:00:10]} 7. Be3 {[%emt 0:00:11]} Be7 {[%emt 0:00:27]} 8. Qd2 {[%emt 0:00:08]} O-O {[%emt 0:00:41]} 9. Be2 {[%emt 0:00:26]} b6 {[%emt 0:00:23]} 10. O-O-O {[%emt 0:08:50] [#]} c4 $1 {[%emt 0:01:18]} 11. f5 $17 {[%emt 0:00:27]} b5 {[%emt 0:00:47]} 12. f6 {[%emt 0:01:49]} gxf6 {[%emt 0:01:00]} 13. Bh6 {[%emt 0:01:56]} b4 {[%emt 0:01:00]} 14. Qf4 {[%emt 0:01:42]} Kh8 {[%emt 0:01:38]} 15. Bxf8 {[%emt 0:02:25]} Nxf8 {[%emt 0:05:55]} 16. exf6 {[%emt 0:02:04]} Bxf6 {[%emt 0:01:49]} 17. Na4 {[%emt 0:06:59]} Bd7 {[%emt 0:16:32]} 18. Nc5 {[%emt 0:05:10]} Be8 {[%emt 0:03:15]} 19. h4 {[%emt 0:04:15]} Ng6 {[%emt 0:01:55]} 1/2-1/2

[Event "LJ Slovak Open 2022"]
[Site "Liptovsky Jan"]
[Date "2022.06.26"]
[Round "7.9"]
[White "Zetocha, Adrian"]
[Black "Harvan, Tomas"]
[Result "1-0"]
[WhiteElo "2331"]
[BlackElo "1853"]
[Annotator "TA"]
[PlyCount "11"]
[EventDate "2022.06.23"]
[EventType "swiss"]
[EventCountry "SVK"]
[SourceTitle "playchess.com"]
[Source "ChessBase"]
[SourceQuality "1"]
[TimeControl "3600+30"]

{[%evp 9,11,-27,-7,-111]} 1. d4 {[%emt 0:00:12]} Nf6 {[%emt 0:00:27]} 2. c4 {[%emt 0:00:24]} g6 {[%emt 0:00:00]} 3. d5 {[%emt 0:00:00]} Bg7 {[%emt 0:00:00]} 4. Nf3 {[%emt 0:00:00]} O-O {[%emt 0:00:00]} 5. g3 {[%emt 0:00:00]} d6 {[%emt 0:00:00] [#]} 6. h3 $146 {[%emt 0:40:06][%mdl 32768] Loss on time!? E60: King's Indian: Unusual lines and Fianchetto Variation without Nc3.} (6. Bg2 $11 {remains equal.}) ({Predecessor:} 6. Bg2 c5 7. O-O Nbd7 8. Nc3 Rb8 9. a4 Ne8 10. Qc2 a6 11. a5 Nc7 12. Ra3 b5 13. axb6 Nxb6 14. b3 e6 15. e4 exd5 16. exd5 Bg4 {1-0 (60) Phan Nguyen Ha,N (1977)-Nguyen,T (1736) Da Lat 2013}) 1-0

[Event "LJ Slovak Open 2022"]
[Site "Liptovsky Jan"]
[Date "2022.06.26"]
[Round "7.10"]
[White "Mrkvik, Jan"]
[Black "Rucek, Kristian"]
[Result "0-1"]
[ECO "D02"]
[WhiteElo "1810"]
[BlackElo "2128"]
[Annotator "RC"]
[PlyCount "65"]
[EventDate "2022.06.23"]
[EventType "swiss"]
[EventCountry "SVK"]
[SourceTitle "playchess.com"]
[Source "ChessBase"]
[SourceQuality "1"]
[TimeControl "3600+30"]

1. d4 {[%emt 0:00:03]} d5 {[%emt 0:00:08]} 2. Bf4 {[%emt 0:00:04]} c5 {[%emt 0:00:19]} 3. e3 {[%emt 0:00:11]} Nc6 {[%emt 0:00:05]} 4. Nf3 {[%emt 0:00:38]} Nf6 {[%emt 0:00:21]} 5. c3 {[%emt 0:00:50]} Qb6 {[%emt 0:00:11]} 6. Qb3 {[%emt 0:01:11]} c4 {[%emt 0:00:06]} 7. Qxb6 {[%emt 0:00:11]} axb6 {[%emt 0:00:02]} 8. Nbd2 {[%emt 0:00:29]} b5 {[%emt 0:00:43]} 9. b3 {[%emt 0:02:51]} Bf5 {[%emt 0:01:19]} 10. Be2 {[%emt 0:01:00]} e6 {[%emt 0:00:50]} 11. Nh4 {[%emt 0:11:32]} Bc2 {[%emt 0:02:23]} 12. Bd1 {[%emt 0:00:28]} Bd3 {[%emt 0:00:40]} 13. Be2 {[%emt 0:00:22]} Bc2 {[%emt 0:01:25]} 14. Bd1 {[%emt 0:01:03]} cxb3 {[%emt 0:07:43]} 15. Nxb3 {[%emt 0:00:58]} Bxd1 {[%emt 0:00:06]} 16. Kxd1 {[%emt 0:02:08]} Ne4 {[%emt 0:00:36]} 17. Kc2 {[%emt 0:01:08]} Nxf2 {[%emt 0:02:02]} 18. Rhb1 {[%emt 0:00:43]} b4 {[%emt 0:01:52]} 19. Nc5 {[%emt 0:04:19]} b6 {[%emt 0:04:22]} 20. Nd3 {[%emt 0:05:56]} Ne4 {[%emt 0:00:14]} 21. Bg3 {[%emt 0:01:54]} Nxc3 {[%emt 0:01:15]} 22. Rb2 {[%emt 0:01:23]} Ne4 {[%emt 0:01:47]} 23. Be1 {[%emt 0:00:20]} Be7 {[%emt 0:00:19]} 24. Nf3 {[%emt 0:00:19]} Ra4 {[%emt 0:03:30]} 25. Nfe5 {[%emt 0:01:36]} Nxe5 {[%emt 0:01:08]} 26. dxe5 {[%emt 0:03:32]} Bc5 {[%emt 0:01:57]} 27. Bxb4 {[%emt 0:02:13]} Bxe3 {[%emt 0:00:20]} 28. Kb3 {[%emt 0:00:12]} Ra8 {[%emt 0:00:41]} 29. Rc2 {[%emt 0:00:14]} Kd7 {[%emt 0:00:25]} 30. Re1 {[%emt 0:00:45]} Bd4 {[%emt 0:01:17]} 31. Rf1 {[%emt 0:01:54]} f6 {[%emt 0:01:10]} 32. g4 {[%emt 0:02:32]} Rac8 {[%emt 0:01:30]} 33. Rxc8 {[%emt 0:00:57]} 0-1

[Event "LJ Slovak Open 2022"]
[Site "Liptovsky Jan"]
[Date "2022.06.26"]
[Round "7.11"]
[White "Kasperek, Ryszard"]
[Black "Rak, Martin"]
[Result "1-0"]
[ECO "B52"]
[WhiteElo "2068"]
[BlackElo "1849"]
[Annotator "NA RC"]
[PlyCount "141"]
[EventDate "2022.06.23"]
[EventType "swiss"]
[EventCountry "SVK"]
[SourceTitle "playchess.com"]
[Source "ChessBase"]
[SourceQuality "1"]
[TimeControl "3600+30"]

1. e4 {[%emt 0:00:01]} c5 {[%emt 0:00:03]} 2. Nf3 {[%emt 0:00:11]} d6 {[%emt 0:00:05]} 3. Bb5+ {[%emt 0:00:39]} Bd7 {[%emt 0:01:03]} 4. Bxd7+ {[%emt 0:00:12]} Qxd7 {[%emt 0:00:50]} 5. O-O {[%emt 0:00:08]} Nc6 {[%emt 0:00:22]} 6. c3 {[%emt 0:00:07]} g6 {[%emt 0:00:30]} 7. d4 {[%emt 0:11:01]} cxd4 {[%emt 0:00:46]} 8. cxd4 {[%emt 0:00:03]} Bg7 {[%emt 0:00:24]} 9. Nc3 {[%emt 0:00:19]} Nf6 {[%emt 0:02:39]} 10. d5 {[%emt 0:16:53]} Ne5 {[%emt 0:03:59]} 11. Nxe5 {[%emt 0:00:07]} dxe5 {[%emt 0:00:04]} 12. Qb3 {[%emt 0:06:22]} O-O {[%emt 0:01:46]} 13. f3 {[%emt 0:00:28]} Ne8 $11 {[%emt 0:03:16]} 14. Be3 {[%emt 0:02:23]} Nd6 {[%emt 0:01:31]} 15. a4 {[%emt 0:08:48]} Rfc8 {[%emt 0:01:58]} 16. Nb5 {[%emt 0:00:09]} a6 {[%emt 0:08:33]} 17. Nxd6 {[%emt 0:02:25]} exd6 {[%emt 0:01:16]} 18. Rfc1 {[%emt 0:01:04]} Rxc1+ {[%emt 0:01:38]} 19. Rxc1 {[%emt 0:00:03]} Rc8 {[%emt 0:00:08]} 20. Rc4 {[%emt 0:01:14]} Rxc4 {[%emt 0:02:04]} 21. Qxc4 {[%emt 0:00:01]} Bf6 {[%emt 0:00:46]} 22. h3 {[%emt 0:05:07]} Bd8 {[%emt 0:02:16]} 23. b4 {[%emt 0:00:05]} Qc7 {[%emt 0:02:13]} 24. Qd3 {[%emt 0:00:06]} a5 {[%emt 0:08:14]} 25. b5 {[%emt 0:00:39]} b6 {[%emt 0:00:22]} 26. g3 {[%emt 0:00:06]} Qc8 {[%emt 0:01:17]} 27. Kg2 {[%emt 0:00:14]} f6 {[%emt 0:00:53]} 28. f4 {[%emt 0:01:11]} Qc7 {[%emt 0:03:42]} 29. fxe5 {[%emt 0:06:39]} fxe5 {[%emt 0:00:06]} 30. h4 {[%emt 0:02:06]} Qc8 {[%emt 0:07:00]} 31. Bh6 {[%emt 0:01:41]} Qg4 {[%emt 0:01:23]} 32. Qf3 {[%emt 0:00:07]} Qxf3+ {[%emt 0:00:27]} 33. Kxf3 {[%emt 0:00:03]} Kf7 {[%emt 0:00:47]} 34. Kg4 {[%emt 0:00:06]} Bf6 {[%emt 0:04:47]} 35. h5 {[%emt 0:00:18]} Be7 {[%emt 0:00:39]} 36. Bg5 {[%emt 0:00:59]} Bf6 {[%emt 0:01:56]} 37. Bh6 {[%emt 0:04:17]} Be7 {[%emt 0:00:05]} 38. Be3 {[%emt 0:01:10]} Bd8 {[%emt 0:00:11]} 39. Bf2 {[%emt 0:01:00]} Kg7 {[%emt 0:00:29]} 40. Be3 {[%emt 0:00:26]} h6 {[%emt 0:00:47]} 41. Bc1 {[%emt 0:00:14]} Bc7 {[%emt 0:00:15]} 42. Ba3 {[%emt 0:00:47]} Kf6 {[%emt 0:00:34]} 43. Bc1 {[%emt 0:00:25]} Kg7 {[%emt 0:00:35]} 44. Bd2 {[%emt 0:00:38]} Bd8 {[%emt 0:00:18]} 45. Be3 {[%emt 0:00:24]} Bc7 {[%emt 0:00:36]} 46. Kh4 {[%emt 0:00:06]} Bd8+ {[%emt 0:00:10]} 47. Kg4 {[%emt 0:00:06]} Bc7 {[%emt 0:00:08]} 48. Bf2 {[%emt 0:00:13]} Bd8 {[%emt 0:00:05]} 49. Be3 {[%emt 0:00:51]} Bc7 {[%emt 0:00:09]} 50. hxg6 {[%emt 0:01:21]} Kxg6 {[%emt 0:00:05]} 51. Bxh6 {[%emt 0:00:13]} Kxh6 {[%emt 0:01:17]} 52. Kf5 {[%emt 0:00:02]} Bb8 {[%emt 0:05:26]} 53. g4 {[%emt 0:01:02]} Bc7 {[%emt 0:00:25]} 54. g5+ {[%emt 0:00:15]} Kg7 {[%emt 0:00:09]} 55. Ke6 {[%emt 0:01:01]} Kg6 {[%emt 0:00:35]} 56. Kd7 {[%emt 0:00:02]} Bb8 {[%emt 0:00:13]} 57. Kc8 {[%emt 0:00:42]} Kxg5 {[%emt 0:00:05]} 58. Kxb8 {[%emt 0:00:11]} Kf4 {[%emt 0:00:02]} 59. Kc7 {[%emt 0:00:05]} Kxe4 {[%emt 0:00:04]} 60. Kxd6 {[%emt 0:00:03]} Kf5 {[%emt 0:01:06]} 61. Kc6 {[%emt 0:01:12]} e4 {[%emt 0:00:10]} 62. d6 {[%emt 0:00:06]} e3 {[%emt 0:00:03]} 63. d7 {[%emt 0:00:03]} e2 {[%emt 0:00:02]} 64. d8=Q {[%emt 0:00:05]} e1=Q {[%emt 0:00:03]} 65. Qd5+ {[%emt 0:00:42]} Kg6 {[%emt 0:01:26]} 66. Kxb6 {[%emt 0:00:47]} Qb4 {[%emt 0:00:10]} 67. Ka7 {[%emt 0:02:07]} Qxa4 {[%emt 0:01:08]} 68. b6 {[%emt 0:00:04]} Qf4 {[%emt 0:01:53]} 69. b7 {[%emt 0:00:16]} Qc7 {[%emt 0:00:38]} 70. Ka8 {[%emt 0:00:09]} a4 {[%emt 0:00:42]} 71. b8=Q {[%emt 0:00:56]} 1-0

[Event "LJ Slovak Open 2022"]
[Site "Liptovsky Jan"]
[Date "2022.06.26"]
[Round "7.12"]
[White "Chlpek, Daniel"]
[Black "Valko, Michal"]
[Result "1-0"]
[ECO "D02"]
[WhiteElo "2030"]
[BlackElo "1906"]
[Annotator "NA RC"]
[PlyCount "33"]
[EventDate "2022.06.23"]
[EventType "swiss"]
[EventCountry "SVK"]
[SourceTitle "playchess.com"]
[Source "ChessBase"]
[SourceQuality "1"]
[TimeControl "3600+30"]

1. Nf3 {[%emt 0:00:04]} d5 {[%emt 0:00:29]} 2. g3 {[%emt 0:00:15]} Nc6 {[%emt 0:00:09]} 3. d4 {[%emt 0:00:34]} Bf5 {[%emt 0:00:11]} 4. Bg2 {[%emt 0:02:11]} e6 {[%emt 0:00:08]} 5. Bf4 {[%emt 0:00:50]} h5 {[%emt 0:01:49]} 6. h4 {[%emt 0:00:14]} Nb4 {[%emt 0:04:01]} 7. Na3 {[%emt 0:00:22]} Bd6 {[%emt 0:00:55]} 8. Bxd6 {[%emt 0:05:42]} Qxd6 {[%emt 0:00:31]} 9. c3 {[%emt 0:00:59]} Na6 {[%emt 0:00:56]} 10. Qa4+ {[%emt 0:00:25]} c6 {[%emt 0:01:03]} 11. O-O {[%emt 0:01:46]} Nf6 {[%emt 0:00:34]} 12. c4 {[%emt 0:00:35]} Ne4 {[%emt 0:00:55]} 13. c5 {[%emt 0:07:42]} Qc7 {[%emt 0:10:55]} 14. Nb1 {[%emt 0:04:09]} f6 {[%emt 0:01:50]} 15. Nbd2 {[%emt 0:04:38]} g5 {[%emt 0:04:18]} 16. Qd1 {[%emt 0:08:03]} g4 {[%emt 0:17:38]} 17. Ne1 {[%emt 0:14:22]} 1-0

[Event "LJ Slovak Open 2022"]
[Site "Liptovsky Jan"]
[Date "2022.06.26"]
[Round "7.13"]
[White "Saravanan Durga"]
[Black "Bakalar, Jan"]
[Result "0-1"]
[ECO "A44"]
[WhiteElo "1660"]
[BlackElo "1916"]
[Annotator "NA RC"]
[PlyCount "47"]
[EventDate "2022.06.23"]
[EventType "swiss"]
[EventCountry "SVK"]
[SourceTitle "playchess.com"]
[Source "ChessBase"]
[SourceQuality "1"]
[TimeControl "3600+30"]

1. d4 {[%emt 0:00:04]} c5 {[%emt 0:00:59]} 2. d5 {[%emt 0:00:22]} e5 {[%emt 0:00:13]} 3. e4 {[%emt 0:00:06]} d6 {[%emt 0:00:04]} 4. Nf3 {[%emt 0:00:11]} Ne7 {[%emt 0:00:15]} 5. c4 {[%emt 0:00:42]} Ng6 {[%emt 0:00:16]} 6. h4 {[%emt 0:00:19]} Be7 {[%emt 0:00:27]} 7. h5 {[%emt 0:01:13]} Nf8 {[%emt 0:01:10]} 8. h6 {[%emt 0:00:38]} g6 {[%emt 0:04:19]} 9. Nc3 {[%emt 0:01:34]} Nfd7 {[%emt 0:00:48]} 10. Be2 {[%emt 0:10:35]} O-O {[%emt 0:01:29]} 11. g4 {[%emt 0:07:12]} Kh8 {[%emt 0:01:48]} 12. Be3 {[%emt 0:21:27]} Na6 {[%emt 0:02:55]} 13. Qd2 {[%emt 0:02:17]} Nc7 {[%emt 0:01:25]} 14. O-O-O {[%emt 0:10:28]} a6 {[%emt 0:03:08]} 15. Rdg1 {[%emt 0:00:17]} b5 {[%emt 0:04:05]} 16. Kb1 {[%emt 0:02:40]} Rb8 {[%emt 0:02:39]} 17. g5 {[%emt 0:02:52]} bxc4 {[%emt 0:03:43]} 18. Bxc4 {[%emt 0:00:06]} Nb5 {[%emt 0:00:12]} 19. Kc1 {[%emt 0:02:33]} Nd4 {[%emt 0:00:56]} 20. Bxd4 {[%emt 0:00:22]} cxd4 {[%emt 0:02:18]} 21. Na4 {[%emt 0:01:40]} Qc7 {[%emt 0:04:25]} 22. b3 {[%emt 0:00:22]} Nc5 {[%emt 0:01:47]} 23. Ne1 {[%emt 0:00:51]} f5 {[%emt 0:11:26]} 24. f4 {[%emt 0:00:28]} 0-1

[Event "LJ Slovak Open 2022"]
[Site "Liptovsky Jan"]
[Date "2022.06.26"]
[Round "7.14"]
[White "Szaszak, Robert"]
[Black "Rucek, Peter"]
[Result "0-1"]
[ECO "B22"]
[WhiteElo "1717"]
[BlackElo "1899"]
[Annotator "NA RC"]
[PlyCount "76"]
[EventDate "2022.06.23"]
[EventType "swiss"]
[EventCountry "SVK"]
[SourceTitle "playchess.com"]
[Source "ChessBase"]
[SourceQuality "1"]
[TimeControl "3600+30"]

1. e4 {[%emt 0:00:08]} e6 {[%emt 0:00:04]} 2. d4 {[%emt 0:00:08]} d5 {[%emt 0:00:04]} 3. exd5 {[%emt 0:00:19]} exd5 {[%emt 0:00:02]} 4. Nf3 {[%emt 0:00:10]} Nf6 {[%emt 0:00:09]} 5. Bd3 {[%emt 0:00:09]} c5 {[%emt 0:00:11]} 6. c3 {[%emt 0:00:24]} c4 {[%emt 0:00:24]} 7. Bc2 {[%emt 0:00:07]} Bd6 {[%emt 0:00:05]} 8. O-O {[%emt 0:00:27]} O-O {[%emt 0:00:07]} 9. Bg5 {[%emt 0:01:05]} Bg4 {[%emt 0:00:25]} 10. Nbd2 {[%emt 0:00:27]} Nbd7 {[%emt 0:00:35]} 11. Qb1 {[%emt 0:00:55]} Qc7 {[%emt 0:01:05]} 12. h3 {[%emt 0:02:29]} Bxf3 {[%emt 0:02:24]} 13. Nxf3 {[%emt 0:00:17]} h6 {[%emt 0:00:44]} 14. Bxf6 {[%emt 0:00:18]} Nxf6 {[%emt 0:00:03]} 15. Re1 {[%emt 0:00:48]} Rfe8 {[%emt 0:00:22]} 16. a3 {[%emt 0:03:49]} b5 {[%emt 0:00:27]} 17. Qd1 {[%emt 0:00:45]} a5 {[%emt 0:00:54]} 18. Nd2 {[%emt 0:01:35]} b4 {[%emt 0:10:03]} 19. axb4 {[%emt 0:02:32]} axb4 {[%emt 0:00:02]} 20. Rxe8+ {[%emt 0:03:28]} Rxe8 {[%emt 0:00:03]} 21. cxb4 {[%emt 0:01:26]} Bxb4 {[%emt 0:01:39]} 22. Nf3 {[%emt 0:01:41]} Qb6 {[%emt 0:08:14]} 23. Ra4 {[%emt 0:00:52]} Bd6 {[%emt 0:04:28]} 24. Qa1 {[%emt 0:00:14]} Bb8 {[%emt 0:05:13]} 25. Ra6 {[%emt 0:01:32]} Qb4 {[%emt 0:04:36]} 26. Ra4 {[%emt 0:01:19]} Qe7 {[%emt 0:02:47]} 27. Qd1 {[%emt 0:01:36]} Nh5 {[%emt 0:02:46]} 28. b3 {[%emt 0:01:00]} Nf4 {[%emt 0:02:25]} 29. bxc4 {[%emt 0:00:19]} Ne2+ {[%emt 0:00:16]} 30. Kh1 {[%emt 0:00:25]} Nc3 {[%emt 0:01:47]} 31. Qc1 {[%emt 0:02:52]} Nxa4 {[%emt 0:01:38]} 32. Bxa4 {[%emt 0:00:13]} Rc8 {[%emt 0:00:59]} 33. c5 {[%emt 0:00:05]} Qe4 {[%emt 0:01:53]} 34. Bd7 {[%emt 0:00:21]} Bf4 {[%emt 0:01:40]} 35. Qa1 {[%emt 0:00:39]} Rb8 {[%emt 0:01:15]} 36. Ng1 {[%emt 0:00:56]} Rb1 {[%emt 0:01:07]} 37. Qa8+ {[%emt 0:00:06]} Kh7 {[%emt 0:00:06]} 38. Qc8 {[%emt 0:00:35]} Rxg1+ {[%emt 0:00:25]} 0-1

[Event "LJ Slovak Open 2022"]
[Site "Liptovsky Jan"]
[Date "2022.06.26"]
[Round "7.15"]
[White "Korenova, Simona"]
[Black "Verba, Vladimir"]
[Result "1-0"]
[ECO "E51"]
[WhiteElo "1895"]
[BlackElo "1786"]
[Annotator "NA RC"]
[PlyCount "60"]
[EventDate "2022.06.23"]
[EventType "swiss"]
[EventCountry "SVK"]
[SourceTitle "playchess.com"]
[Source "ChessBase"]
[SourceQuality "1"]
[TimeControl "3600+30"]

1. d4 {[%emt 0:00:06]} d5 {[%emt 0:00:18]} 2. c4 {[%emt 0:00:11]} dxc4 {[%emt 0:00:10]} 3. Nc3 {[%emt 0:00:37]} Nc6 {[%emt 0:01:15]} 4. e3 {[%emt 0:01:07]} Nf6 {[%emt 0:01:25]} 5. Bxc4 {[%emt 0:00:17]} e6 {[%emt 0:00:10]} 6. Nf3 {[%emt 0:00:14]} Bd6 {[%emt 0:00:13]} 7. O-O {[%emt 0:00:59]} O-O {[%emt 0:01:34]} 8. e4 {[%emt 0:02:31]} e5 {[%emt 0:00:23]} 9. Bg5 {[%emt 0:02:10]} exd4 {[%emt 0:05:58]} 10. Nd5 {[%emt 0:04:36]} Be7 {[%emt 0:10:56]} 11. Bf4 {[%emt 0:02:24]} Nxd5 {[%emt 0:04:27]} 12. exd5 {[%emt 0:00:45]} Na5 {[%emt 0:01:00]} 13. Qxd4 {[%emt 0:00:53]} c6 {[%emt 0:16:32]} 14. d6 {[%emt 0:09:20]} Bf6 {[%emt 0:00:19]} 15. Qe4 {[%emt 0:02:56]} Re8 {[%emt 0:04:33]} 16. Qc2 {[%emt 0:01:16]} Nxc4 {[%emt 0:03:46]} 17. Qxc4 {[%emt 0:00:11]} Be6 {[%emt 0:00:47]} 18. Qc2 {[%emt 0:00:43]} Bd5 {[%emt 0:01:16]} 19. Qd3 {[%emt 0:02:50]} Re4 {[%emt 0:05:26]} 20. Bg3 {[%emt 0:00:30]} Qd7 {[%emt 0:00:30]} 21. Rfe1 {[%emt 0:01:27]} Rae8 {[%emt 0:00:09]} 22. Rxe4 {[%emt 0:01:50]} Bxe4 {[%emt 0:01:12]} 23. Qa3 {[%emt 0:01:53]} a6 {[%emt 0:01:05]} 24. Rd1 {[%emt 0:01:25]} Bd5 {[%emt 0:00:58]} 25. h3 {[%emt 0:01:06]} Re2 {[%emt 0:00:32]} 26. Nd4 {[%emt 0:01:46]} Bxd4 {[%emt 0:02:11]} 27. Rxd4 {[%emt 0:00:11]} Qxh3 {[%emt 0:00:13]} 28. Kf1 {[%emt 0:03:42]} Qe6 {[%emt 0:01:19]} 29. Qa5 {[%emt 0:01:45]} h6 {[%emt 0:02:51]} 30. d7 {[%emt 0:01:15]} Rxb2 {[%emt 0:02:45]} 1-0

[Event "LJ Slovak Open 2022"]
[Site "Liptovsky Jan"]
[Date "2022.06.26"]
[Round "7.17"]
[White "Janik, Marek Tobias"]
[Black "Kulich, Filip"]
[Result "1/2-1/2"]
[ECO "C17"]
[WhiteElo "1840"]
[BlackElo "1682"]
[Annotator "NA RC"]
[PlyCount "94"]
[EventDate "2022.06.23"]
[EventType "swiss"]
[EventCountry "SVK"]
[SourceTitle "playchess.com"]
[Source "ChessBase"]
[SourceQuality "1"]
[TimeControl "3600+30"]

1. e4 {[%emt 0:00:12]} c6 {[%emt 0:00:13]} 2. d4 {[%emt 0:00:04]} d5 {[%emt 0:00:08]} 3. e5 {[%emt 0:00:04]} c5 {[%emt 0:00:16]} 4. dxc5 {[%emt 0:00:30]} e6 {[%emt 0:00:18]} 5. Nf3 {[%emt 0:00:29]} Bxc5 {[%emt 0:00:26]} 6. a3 {[%emt 0:00:52]} Ne7 {[%emt 0:00:35]} 7. Bd3 {[%emt 0:01:38]} Ng6 {[%emt 0:01:30]} 8. O-O {[%emt 0:01:28]} Nc6 {[%emt 0:01:41]} 9. Re1 {[%emt 0:00:59]} a6 {[%emt 0:01:11]} 10. Nc3 {[%emt 0:01:33]} O-O {[%emt 0:01:21]} 11. Qe2 {[%emt 0:02:21]} b5 {[%emt 0:02:07]} 12. Bg5 {[%emt 0:06:11]} Nd4 {[%emt 0:05:14]} 13. Bxd8 {[%emt 0:04:09]} Nxe2+ {[%emt 0:00:09]} 14. Nxe2 {[%emt 0:00:19]} Rxd8 {[%emt 0:00:08]} 15. Bxg6 {[%emt 0:00:29]} hxg6 {[%emt 0:00:18]} 16. Ned4 {[%emt 0:00:23]} Bb7 {[%emt 0:00:47]} 17. c3 {[%emt 0:00:54]} Rac8 {[%emt 0:01:02]} 18. Rac1 {[%emt 0:01:19]} Rc7 {[%emt 0:02:05]} 19. Nb3 {[%emt 0:06:16]} Bb6 {[%emt 0:00:30]} 20. Nfd4 {[%emt 0:01:16]} Rdc8 {[%emt 0:04:50]} 21. g3 {[%emt 0:00:35]} Rc4 {[%emt 0:01:24]} 22. Kg2 {[%emt 0:01:56]} Kf8 {[%emt 0:04:51]} 23. h4 {[%emt 0:01:04]} Rd8 {[%emt 0:02:03]} 24. f3 {[%emt 0:03:35]} Bc8 {[%emt 0:00:29]} 25. Rh1 {[%emt 0:01:28]} Bc7 {[%emt 0:05:32]} 26. Nd2 {[%emt 0:01:27]} Ra4 {[%emt 0:02:30]} 27. h5 {[%emt 0:00:47]} g5 {[%emt 0:04:44]} 28. h6 {[%emt 0:00:11]} g6 {[%emt 0:02:00]} 29. Rh2 {[%emt 0:00:40]} Kg8 {[%emt 0:01:41]} 30. Rch1 {[%emt 0:00:07]} Re8 {[%emt 0:01:25]} 31. f4 {[%emt 0:00:30]} gxf4 {[%emt 0:01:49]} 32. gxf4 {[%emt 0:00:05]} Bb7 {[%emt 0:01:44]} 33. N2f3 {[%emt 0:01:48]} Bd8 {[%emt 0:00:28]} 34. Ng5 {[%emt 0:01:20]} Bxg5 {[%emt 0:00:29]} 35. fxg5 {[%emt 0:00:03]} Rc4 {[%emt 0:01:13]} 36. Rf1 {[%emt 0:00:48]} Rc7 {[%emt 0:00:57]} 37. Rh3 {[%emt 0:01:10]} Ree7 {[%emt 0:04:58]} 38. Kf2 {[%emt 0:04:19]} Rc8 {[%emt 0:02:21]} 39. Ke1 {[%emt 0:00:42]} Rc4 {[%emt 0:00:38]} 40. Kd2 {[%emt 0:01:28]} Bc8 {[%emt 0:00:45]} 41. b3 {[%emt 0:01:06]} Rc5 {[%emt 0:01:12]} 42. Ne2 {[%emt 0:01:21]} Bd7 {[%emt 0:01:12]} 43. Nf4 {[%emt 0:00:06]} Kh7 {[%emt 0:01:04]} 44. Nd3 {[%emt 0:01:22]} Rc8 {[%emt 0:00:49]} 45. b4 {[%emt 0:01:27]} Rc4 {[%emt 0:02:18]} 46. Rhf3 {[%emt 0:01:14]} Be8 {[%emt 0:00:47]} 47. Rf4 {[%emt 0:00:09]} Ra7 {[%emt 0:01:54]} 1/2-1/2